[Event "Titled Tuesday Blitz October 25 Late 2022"]
[White "Jensen, Matthew R"]
[Black "Storey, Charles H"]
[WhiteFideId "2018110"]
[BlackFideId "406686"]
[WhiteElo "2291"]
[BlackElo "2252"]
[Result "0-1"]
[Round "03"]
[TimeControl "180+1"]
[Date "2022.10.26"]
[WhiteClock "0:00:43"]
[BlackClock "0:00:17"]

1. d4 {[%clk 0:03:00]}  g6 {[%clk 0:02:57]} 2. Bf4 {[%clk 0:02:51]}  Bg7 {[%clk 0:02:51]} 3. c3 {[%clk 0:02:51]}  d6 {[%clk 0:02:50]} 4. e3 {[%clk 0:02:45]}  Nf6 {[%clk 0:02:51]} 5. h3 {[%clk 0:02:43]}  O-O {[%clk 0:02:49]} 6. Nf3 {[%clk 0:02:44]}  b6 {[%clk 0:02:45]} 7. Be2 {[%clk 0:02:43]}  Bb7 {[%clk 0:02:45]} 8. O-O {[%clk 0:02:44]}  Nbd7 {[%clk 0:02:45]} 9. Nbd2 {[%clk 0:02:45]}  Re8 {[%clk 0:02:45]} 10. Bh2 {[%clk 0:02:44]}  e5 {[%clk 0:02:44]} 11. Qc2 {[%clk 0:02:40]}  e4 {[%clk 0:02:37]} 12. Ne1 {[%clk 0:02:38]}  Qe7 {[%clk 0:02:32]} 13. c4 {[%clk 0:02:36]}  h5 {[%clk 0:02:30]} 14. a4 {[%clk 0:02:23]}  Nh7 {[%clk 0:02:25]} 15. a5 {[%clk 0:02:21]}  Ng5 {[%clk 0:02:24]} 16. a6 {[%clk 0:02:20]}  Bc8 {[%clk 0:02:20]} 17. Ra3 {[%clk 0:02:09]}  c5 {[%clk 0:02:17]} 18. dxc5 {[%clk 0:01:49]}  dxc5 {[%clk 0:02:13]} 19. f4 {[%clk 0:01:45]}  Nh7 {[%clk 0:01:54]} 20. g4 {[%clk 0:01:30]}  hxg4 {[%clk 0:01:53]} 21. hxg4 {[%clk 0:01:31]}  Nb8 {[%clk 0:01:53]} 22. Ng2 {[%clk 0:01:27]}  Nxa6 {[%clk 0:01:52]} 23. f5 {[%clk 0:01:21]}  Nb4 {[%clk 0:01:51]} 24. Qb1 {[%clk 0:01:15]}  Ng5 {[%clk 0:01:38]} 25. fxg6 {[%clk 0:01:10]}  fxg6 {[%clk 0:01:36]} 26. Nf4 {[%clk 0:01:10]}  Kh7 {[%clk 0:01:26]} 27. Qe1 {[%clk 0:01:08]}  Ne6 {[%clk 0:00:51]} 28. Qg3 {[%clk 0:01:02]}  Bb7 {[%clk 0:00:46]} 29. Qh3+ {[%clk 0:00:52]}  Bh6 {[%clk 0:00:46]} 30. Nd5 {[%clk 0:00:51]}  Nxd5 {[%clk 0:00:37]} 31. Nxe4 {[%clk 0:00:46]}  Ng5 {[%clk 0:00:28]} 32. Nxg5+ {[%clk 0:00:42]}  Qxg5 {[%clk 0:00:28]} 33. Rf7+ {[%clk 0:00:42]}  Kg8 {[%clk 0:00:26]} 34. Rxb7 {[%clk 0:00:41]}  Rxe3 {[%clk 0:00:24]} 35. Rxe3 {[%clk 0:00:36]}  Qxe3+ {[%clk 0:00:23]} 36. Qxe3 {[%clk 0:00:36]}  Bxe3+ {[%clk 0:00:23]} 37. Kg2 {[%clk 0:00:37]}  Nf4+ {[%clk 0:00:23]} 38. Bxf4 {[%clk 0:00:36]}  Bxf4 {[%clk 0:00:23]} 39. Bf3 {[%clk 0:00:37]}  Rd8 {[%clk 0:00:22]} 40. Bd5+ {[%clk 0:00:36]}  Kh8 {[%clk 0:00:22]} 41. Rxa7 {[%clk 0:00:37]}  b5 {[%clk 0:00:23]} 42. Rb7 {[%clk 0:00:35]}  b4 {[%clk 0:00:22]} 43. Rb6 {[%clk 0:00:32]}  g5 {[%clk 0:00:23]} 44. Rh6+ {[%clk 0:00:32]}  Kg7 {[%clk 0:00:23]} 45. Re6 {[%clk 0:00:32]}  Rd7 {[%clk 0:00:20]} 46. Rc6 {[%clk 0:00:32]}  Be3 {[%clk 0:00:19]} 47. Kf3 {[%clk 0:00:33]}  Bd4 {[%clk 0:00:19]} 48. Ke4 {[%clk 0:00:33]}  Re7+ {[%clk 0:00:17]} 49. Re6 {[%clk 0:00:33]}  Rxe6+ {[%clk 0:00:17]} 50. Bxe6 {[%clk 0:00:34]}  Bxb2 {[%clk 0:00:18]} 51. Kd3 {[%clk 0:00:31]}  Kf6 {[%clk 0:00:16]} 52. Bd5 {[%clk 0:00:30]}  Ke5 {[%clk 0:00:16]} 53. Kc2 {[%clk 0:00:30]}  Bd4 {[%clk 0:00:16]} 54. Kb3 {[%clk 0:00:30]}  Be3 {[%clk 0:00:16]} 55. Bf7 {[%clk 0:00:30]}  Kf4 {[%clk 0:00:16]} 56. Be6 {[%clk 0:00:30]}  Bd4 {[%clk 0:00:17]} 57. Bd7 {[%clk 0:00:31]}  Be5 {[%clk 0:00:17]} 58. Bc8 {[%clk 0:00:31]}  Ke4 {[%clk 0:00:17]} 59. Bd7 {[%clk 0:00:32]}  Kd3 {[%clk 0:00:17]} 60. Bc8 {[%clk 0:00:32]}  Ke3 {[%clk 0:00:17]} 61. Bd7 {[%clk 0:00:33]}  Kd2 {[%clk 0:00:17]} 62. Bc8 {[%clk 0:00:34]}  Ke3 {[%clk 0:00:17]} 63. Bd7 {[%clk 0:00:35]}  Kd4 {[%clk 0:00:17]} 64. Bc8 {[%clk 0:00:36]}  Bf4 {[%clk 0:00:17]} 65. Bd7 {[%clk 0:00:37]}  Bd2 {[%clk 0:00:18]} 66. Bc8 {[%clk 0:00:37]}  Ke5 {[%clk 0:00:18]} 67. Bd7 {[%clk 0:00:38]}  Kd6 {[%clk 0:00:19]} 68. Bc8 {[%clk 0:00:39]}  Kc7 {[%clk 0:00:20]} 69. Bd7 {[%clk 0:00:40]}  Kxd7 {[%clk 0:00:20]} 70. Kc2 {[%clk 0:00:40]}  Bf4 {[%clk 0:00:19]} 71. Kd3 {[%clk 0:00:40]}  Kd6 {[%clk 0:00:20]} 72. Kc2 {[%clk 0:00:41]}  Ke5 {[%clk 0:00:21]} 73. Kb3 {[%clk 0:00:42]}  Kd4 {[%clk 0:00:21]} 74. Ka4 {[%clk 0:00:41]}  Kxc4 {[%clk 0:00:21]} 75. Ka5 {[%clk 0:00:42]}  b3 {[%clk 0:00:21]} 76. Ka6 {[%clk 0:00:42]}  b2 {[%clk 0:00:21]} 77. Ka7 {[%clk 0:00:43]}  b1=Q {[%clk 0:00:20]} 78. Ka8 {[%clk 0:00:43]}  Qb8# {[%clk 0:00:17]} 0-1


[Site "https://www.chess.com"]

[Event "Titled Tuesday Blitz October 25 Late 2022"]
[White "Jimenez Almeida, Luis David"]
[Black "Stanisz, Patryk"]
[WhiteFideId "22242244"]
[BlackFideId "1123106"]
[WhiteElo "2158"]
[BlackElo "2069"]
[Result "1-0"]
[Round "03"]
[TimeControl "180+1"]
[Date "2022.10.26"]
[WhiteClock "0:02:15"]
[BlackClock "0:00:08"]

1. e4 {[%clk 0:03:00]}  c5 {[%clk 0:02:59]} 2. Nc3 {[%clk 0:02:59]}  Nc6 {[%clk 0:02:58]} 3. g3 {[%clk 0:02:59]}  g6 {[%clk 0:02:59]} 4. Bg2 {[%clk 0:03:00]}  Bg7 {[%clk 0:03:00]} 5. d3 {[%clk 0:03:00]}  Rb8 {[%clk 0:03:01]} 6. Be3 {[%clk 0:03:00]}  d6 {[%clk 0:03:01]} 7. a4 {[%clk 0:03:00]}  a6 {[%clk 0:03:00]} 8. Qd2 {[%clk 0:03:00]}  b5 {[%clk 0:03:00]} 9. Nge2 {[%clk 0:03:00]}  b4 {[%clk 0:03:00]} 10. Nd1 {[%clk 0:03:00]}  e6 {[%clk 0:02:59]} 11. O-O {[%clk 0:02:58]}  Nge7 {[%clk 0:02:59]} 12. f4 {[%clk 0:02:58]}  O-O {[%clk 0:02:59]} 13. d4 {[%clk 0:02:55]}  cxd4 {[%clk 0:02:47]} 14. Nxd4 {[%clk 0:02:56]}  Nxd4 {[%clk 0:02:48]} 15. Bxd4 {[%clk 0:02:56]}  Bxd4+ {[%clk 0:02:48]} 16. Qxd4 {[%clk 0:02:55]}  Qb6 {[%clk 0:02:49]} 17. Qxb6 {[%clk 0:02:54]}  Rxb6 {[%clk 0:02:50]} 18. Ne3 {[%clk 0:02:54]}  Bd7 {[%clk 0:02:13]} 19. Rfd1 {[%clk 0:02:51]}  Rc8 {[%clk 0:02:10]} 20. b3 {[%clk 0:02:51]}  Rc3 {[%clk 0:01:51]} 21. Kf2 {[%clk 0:02:35]}  Rbc6 {[%clk 0:01:29]} 22. Rd2 {[%clk 0:02:35]}  Bc8 {[%clk 0:00:44]} 23. Rad1 {[%clk 0:02:27]}  a5 {[%clk 0:00:30]} 24. Rxd6 {[%clk 0:02:25]}  Ba6 {[%clk 0:00:31]} 25. e5 {[%clk 0:02:16]}  Rxd6 {[%clk 0:00:27]} 26. exd6 {[%clk 0:02:16]}  Nf5 {[%clk 0:00:08]} 27. Nxf5 {[%clk 0:02:15]}  Rxc2+ {[%clk 0:00:08]} 28. Kg1 {[%clk 0:02:15]} 1-0


[Site "https://www.chess.com"]

[Event "Titled Tuesday Blitz October 25 Late 2022"]
[White "Joubert, Dantelle"]
[Black "Mickiewicz, Piotr"]
[WhiteFideId "14310813"]
[BlackFideId "1114891"]
[WhiteElo "1507"]
[BlackElo "2246"]
[Result "0-1"]
[Round "03"]
[TimeControl "180+1"]
[Date "2022.10.26"]
[WhiteClock "0:00:57"]
[BlackClock "0:01:10"]

1. d4 {[%clk 0:02:48]}  Nf6 {[%clk 0:02:58]} 2. c4 {[%clk 0:02:48]}  e6 {[%clk 0:02:59]} 3. Nf3 {[%clk 0:02:45]}  d5 {[%clk 0:02:59]} 4. Nc3 {[%clk 0:02:44]}  c6 {[%clk 0:02:58]} 5. e3 {[%clk 0:02:43]}  Nbd7 {[%clk 0:02:58]} 6. Be2 {[%clk 0:02:42]}  dxc4 {[%clk 0:02:58]} 7. a4 {[%clk 0:02:41]}  Bd6 {[%clk 0:02:41]} 8. O-O {[%clk 0:02:38]}  Qe7 {[%clk 0:02:39]} 9. Bxc4 {[%clk 0:02:37]}  e5 {[%clk 0:02:36]} 10. e4 {[%clk 0:02:30]}  O-O {[%clk 0:02:28]} 11. Re1 {[%clk 0:02:28]}  a5 {[%clk 0:02:21]} 12. h3 {[%clk 0:02:19]}  exd4 {[%clk 0:01:28]} 13. Nxd4 {[%clk 0:02:16]}  Ne5 {[%clk 0:01:25]} 14. Bf1 {[%clk 0:02:08]}  Bc5 {[%clk 0:01:22]} 15. Nb3 {[%clk 0:02:06]}  Bb6 {[%clk 0:01:20]} 16. Be3 {[%clk 0:01:54]}  Bxe3 {[%clk 0:01:18]} 17. Rxe3 {[%clk 0:01:53]}  Rd8 {[%clk 0:01:17]} 18. Qc2 {[%clk 0:01:51]}  Be6 {[%clk 0:01:17]} 19. Nd2 {[%clk 0:01:37]}  g5 {[%clk 0:01:15]} 20. Rg3 {[%clk 0:01:30]}  h6 {[%clk 0:01:14]} 21. f4 {[%clk 0:01:28]}  Nh5 {[%clk 0:01:13]} 22. Rxg5+ {[%clk 0:01:06]}  hxg5 {[%clk 0:01:12]} 23. fxe5 {[%clk 0:01:06]}  Qc5+ {[%clk 0:01:12]} 24. Kh2 {[%clk 0:01:01]}  Qxe5+ {[%clk 0:01:11]} 25. Kg1 {[%clk 0:00:59]}  Qd4+ {[%clk 0:01:10]} 26. Kh2 {[%clk 0:00:57]}  Qxd2 {[%clk 0:01:10]} 0-1


[Site "https://www.chess.com"]

[Event "Titled Tuesday Blitz October 25 Late 2022"]
[White "Kamsky, Gata"]
[Black "Machidon, Cristi"]
[WhiteFideId "2000024"]
[BlackFideId "13904590"]
[WhiteElo "2666"]
[BlackElo "2312"]
[Result "1-0"]
[Round "03"]
[TimeControl "180+1"]
[Date "2022.10.26"]
[WhiteClock "0:00:14"]
[BlackClock "0:00:12"]

1. e4 {[%clk 0:03:00]}  c6 {[%clk 0:02:58]} 2. Nf3 {[%clk 0:02:59]}  d5 {[%clk 0:02:58]} 3. d3 {[%clk 0:02:59]}  dxe4 {[%clk 0:02:57]} 4. dxe4 {[%clk 0:02:59]}  Qxd1+ {[%clk 0:02:58]} 5. Kxd1 {[%clk 0:02:59]}  Bg4 {[%clk 0:02:56]} 6. Be2 {[%clk 0:02:54]}  Nf6 {[%clk 0:02:55]} 7. Nfd2 {[%clk 0:02:54]}  Bxe2+ {[%clk 0:02:55]} 8. Kxe2 {[%clk 0:02:54]}  Nbd7 {[%clk 0:02:55]} 9. a4 {[%clk 0:02:54]}  e6 {[%clk 0:02:40]} 10. f3 {[%clk 0:02:54]}  g5 {[%clk 0:02:39]} 11. Nc4 {[%clk 0:02:49]}  g4 {[%clk 0:02:38]} 12. Nbd2 {[%clk 0:02:28]}  Rg8 {[%clk 0:02:38]} 13. f4 {[%clk 0:02:23]}  Nc5 {[%clk 0:02:30]} 14. e5 {[%clk 0:02:21]}  Nd5 {[%clk 0:02:30]} 15. Rf1 {[%clk 0:01:56]}  Nb4 {[%clk 0:02:27]} 16. c3 {[%clk 0:01:53]}  Nbd3 {[%clk 0:02:27]} 17. b4 {[%clk 0:01:49]}  Nxc1+ {[%clk 0:02:19]} 18. Rfxc1 {[%clk 0:01:49]}  Nd7 {[%clk 0:02:17]} 19. Ne4 {[%clk 0:01:49]}  Rb8 {[%clk 0:02:09]} 20. g3 {[%clk 0:01:48]}  Be7 {[%clk 0:01:52]} 21. Rd1 {[%clk 0:01:47]}  Nb6 {[%clk 0:01:47]} 22. Ncd6+ {[%clk 0:01:41]}  Kf8 {[%clk 0:01:29]} 23. c4 {[%clk 0:01:40]}  h5 {[%clk 0:01:28]} 24. a5 {[%clk 0:01:38]}  Nc8 {[%clk 0:01:28]} 25. c5 {[%clk 0:01:36]}  h4 {[%clk 0:01:24]} 26. Nxc8 {[%clk 0:01:35]}  Rxc8 {[%clk 0:01:24]} 27. Rd7 {[%clk 0:01:36]}  Rb8 {[%clk 0:01:23]} 28. Nd6 {[%clk 0:01:31]}  Rh8 {[%clk 0:00:51]} 29. Rf1 {[%clk 0:01:13]}  hxg3 {[%clk 0:00:50]} 30. hxg3 {[%clk 0:01:13]}  Rh2+ {[%clk 0:00:49]} 31. Rf2 {[%clk 0:01:13]}  Rh1 {[%clk 0:00:49]} 32. f5 {[%clk 0:01:12]}  Rb1 {[%clk 0:00:33]} 33. fxe6 {[%clk 0:01:05]}  Rb2+ {[%clk 0:00:34]} 34. Kf1 {[%clk 0:01:05]}  Rxf2+ {[%clk 0:00:34]} 35. Kxf2 {[%clk 0:01:05]}  fxe6 {[%clk 0:00:35]} 36. Ke3 {[%clk 0:01:04]}  b6 {[%clk 0:00:34]} 37. Rxa7 {[%clk 0:00:59]}  bxc5 {[%clk 0:00:34]} 38. bxc5 {[%clk 0:00:59]}  Rb3+ {[%clk 0:00:28]} 39. Kf2 {[%clk 0:00:42]}  Rc3 {[%clk 0:00:25]} 40. Ra8+ {[%clk 0:00:36]}  Kg7 {[%clk 0:00:25]} 41. Re8 {[%clk 0:00:37]}  Bg5 {[%clk 0:00:24]} 42. Ne4 {[%clk 0:00:32]}  Be3+ {[%clk 0:00:24]} 43. Ke2 {[%clk 0:00:31]}  Ra3 {[%clk 0:00:24]} 44. Rxe6 {[%clk 0:00:29]}  Bd4 {[%clk 0:00:20]} 45. Rxc6 {[%clk 0:00:22]}  Bxe5 {[%clk 0:00:20]} 46. a6 {[%clk 0:00:21]}  Bxg3 {[%clk 0:00:14]} 47. Nxg3 {[%clk 0:00:17]}  Rxg3 {[%clk 0:00:15]} 48. Rb6 {[%clk 0:00:15]}  Ra3 {[%clk 0:00:12]} 49. c6 {[%clk 0:00:15]}  Ra2+ {[%clk 0:00:12]} 50. Kf1 {[%clk 0:00:14]} 1-0


[Site "https://www.chess.com"]

[Event "Titled Tuesday Blitz October 25 Late 2022"]
[White "Khater, Sherif"]
[Black "Wieczorek, Zbigniew"]
[WhiteFideId "2034280"]
[BlackFideId "1102001"]
[WhiteElo "2587"]
[BlackElo "2349"]
[Result "0-1"]
[Round "03"]
[TimeControl "180+1"]
[Date "2022.10.26"]
[WhiteClock "0:01:28"]
[BlackClock "0:00:29"]

1. Nf3 {[%clk 0:03:00]}  g6 {[%clk 0:02:59]} 2. g3 {[%clk 0:02:58]}  Bg7 {[%clk 0:02:58]} 3. Bg2 {[%clk 0:02:59]}  d5 {[%clk 0:02:59]} 4. d3 {[%clk 0:02:59]}  c6 {[%clk 0:02:59]} 5. O-O {[%clk 0:02:59]}  Nf6 {[%clk 0:03:00]} 6. c4 {[%clk 0:02:59]}  O-O {[%clk 0:03:00]} 7. Qc2 {[%clk 0:02:59]}  dxc4 {[%clk 0:02:58]} 8. dxc4 {[%clk 0:03:00]}  Bf5 {[%clk 0:02:58]} 9. Qb3 {[%clk 0:03:00]}  Qb6 {[%clk 0:02:57]} 10. Qxb6 {[%clk 0:02:56]}  axb6 {[%clk 0:02:57]} 11. Nc3 {[%clk 0:02:57]}  Ne4 {[%clk 0:02:56]} 12. Nxe4 {[%clk 0:02:56]}  Bxe4 {[%clk 0:02:56]} 13. Rd1 {[%clk 0:02:54]}  Na6 {[%clk 0:02:54]} 14. Ne1 {[%clk 0:02:51]}  Bxg2 {[%clk 0:02:52]} 15. Kxg2 {[%clk 0:02:52]}  Nc5 {[%clk 0:02:48]} 16. Nd3 {[%clk 0:02:51]}  Nb3 {[%clk 0:02:18]} 17. Rb1 {[%clk 0:02:47]}  Rxa2 {[%clk 0:02:17]} 18. Nb4 {[%clk 0:02:44]}  Ra4 {[%clk 0:02:13]} 19. Nd3 {[%clk 0:02:43]}  Rxc4 {[%clk 0:02:10]} 20. Be3 {[%clk 0:02:43]}  b5 {[%clk 0:02:05]} 21. f4 {[%clk 0:02:43]}  Rc2 {[%clk 0:02:03]} 22. Kf3 {[%clk 0:02:42]}  c5 {[%clk 0:02:00]} 23. Ne5 {[%clk 0:02:41]}  Bxe5 {[%clk 0:01:58]} 24. fxe5 {[%clk 0:02:41]}  Kg7 {[%clk 0:01:49]} 25. Rd7 {[%clk 0:02:41]}  Re8 {[%clk 0:01:35]} 26. Rxb7 {[%clk 0:02:41]}  b4 {[%clk 0:01:35]} 27. h4 {[%clk 0:02:35]}  h6 {[%clk 0:01:34]} 28. g4 {[%clk 0:02:31]}  Rc4 {[%clk 0:01:27]} 29. Rd1 {[%clk 0:02:28]}  Nd4+ {[%clk 0:01:15]} 30. Bxd4 {[%clk 0:02:26]}  cxd4 {[%clk 0:01:15]} 31. Rd3 {[%clk 0:02:21]}  g5 {[%clk 0:01:03]} 32. hxg5 {[%clk 0:02:19]}  hxg5 {[%clk 0:01:03]} 33. b3 {[%clk 0:02:20]}  Rc5 {[%clk 0:00:59]} 34. Ke4 {[%clk 0:02:16]}  Rc2 {[%clk 0:00:59]} 35. Kf3 {[%clk 0:02:13]}  Rc5 {[%clk 0:00:58]} 36. Rxd4 {[%clk 0:02:12]}  Rxe5 {[%clk 0:00:58]} 37. Rbxb4 {[%clk 0:02:10]}  Rc8 {[%clk 0:00:52]} 38. Re4 {[%clk 0:02:11]}  Rc3+ {[%clk 0:00:52]} 39. e3 {[%clk 0:02:10]}  Rxe4 {[%clk 0:00:50]} 40. Kxe4 {[%clk 0:02:09]}  Kf6 {[%clk 0:00:47]} 41. Rb6+ {[%clk 0:02:08]}  e6 {[%clk 0:00:47]} 42. Rb5 {[%clk 0:02:04]}  Rc1 {[%clk 0:00:46]} 43. Rb8 {[%clk 0:02:00]}  Rg1 {[%clk 0:00:45]} 44. Kf3 {[%clk 0:02:01]}  Rf1+ {[%clk 0:00:46]} 45. Ke2 {[%clk 0:02:01]}  Rg1 {[%clk 0:00:46]} 46. Kf3 {[%clk 0:02:01]}  Rf1+ {[%clk 0:00:46]} 47. Ke2 {[%clk 0:01:56]}  Rg1 {[%clk 0:00:46]} 48. Rb4 {[%clk 0:01:57]}  Ke5 {[%clk 0:00:44]} 49. Rc4 {[%clk 0:01:54]}  f5 {[%clk 0:00:43]} 50. gxf5 {[%clk 0:01:54]}  exf5 {[%clk 0:00:43]} 51. b4 {[%clk 0:01:53]}  Rb1 {[%clk 0:00:42]} 52. Kd3 {[%clk 0:01:51]}  g4 {[%clk 0:00:42]} 53. Rc5+ {[%clk 0:01:46]}  Kf6 {[%clk 0:00:42]} 54. b5 {[%clk 0:01:47]}  g3 {[%clk 0:00:42]} 55. Rc2 {[%clk 0:01:46]}  Kg5 {[%clk 0:00:40]} 56. Kc4 {[%clk 0:01:36]}  Kg4 {[%clk 0:00:40]} 57. Kd4 {[%clk 0:01:29]}  Rxb5 {[%clk 0:00:38]} 58. Rc8 {[%clk 0:01:29]}  g2 {[%clk 0:00:30]} 59. e4 {[%clk 0:01:28]}  g1=Q+ {[%clk 0:00:29]} 0-1


[Site "https://www.chess.com"]

[Event "Titled Tuesday Blitz October 25 Late 2022"]
[White "Mekhane, Adam"]
[Black "Djordjevic, Vuk"]
[WhiteFideId "36050601"]
[BlackFideId "902098"]
[WhiteElo "2175"]
[BlackElo "2456"]
[Result "0-1"]
[Round "03"]
[TimeControl "180+1"]
[Date "2022.10.26"]
[WhiteClock "0:00:05"]
[BlackClock "0:00:05"]

1. e4 {[%clk 0:03:00]}  d5 {[%clk 0:03:00]} 2. exd5 {[%clk 0:03:00]}  Qxd5 {[%clk 0:03:01]} 3. Nc3 {[%clk 0:03:00]}  Qd6 {[%clk 0:03:01]} 4. Nf3 {[%clk 0:02:57]}  Nf6 {[%clk 0:03:01]} 5. d4 {[%clk 0:02:56]}  c6 {[%clk 0:03:02]} 6. Be2 {[%clk 0:02:56]}  Bg4 {[%clk 0:03:02]} 7. O-O {[%clk 0:02:56]}  e6 {[%clk 0:03:02]} 8. h3 {[%clk 0:02:53]}  Bxf3 {[%clk 0:03:02]} 9. Bxf3 {[%clk 0:02:54]}  Nbd7 {[%clk 0:03:03]} 10. g3 {[%clk 0:02:52]}  Qc7 {[%clk 0:03:03]} 11. Kg2 {[%clk 0:02:43]}  Bd6 {[%clk 0:03:02]} 12. Ne2 {[%clk 0:02:38]}  O-O {[%clk 0:03:01]} 13. c4 {[%clk 0:02:38]}  e5 {[%clk 0:03:01]} 14. Nc3 {[%clk 0:02:32]}  exd4 {[%clk 0:02:59]} 15. Qxd4 {[%clk 0:02:32]}  Ne5 {[%clk 0:02:59]} 16. Bf4 {[%clk 0:02:24]}  Rad8 {[%clk 0:02:13]} 17. Bxe5 {[%clk 0:02:15]}  Bxe5 {[%clk 0:02:13]} 18. Qxa7 {[%clk 0:02:15]}  Bxc3 {[%clk 0:01:57]} 19. bxc3 {[%clk 0:02:13]}  Ra8 {[%clk 0:01:58]} 20. Qc5 {[%clk 0:02:02]}  Nd7 {[%clk 0:01:57]} 21. Qd4 {[%clk 0:01:54]}  Ne5 {[%clk 0:01:57]} 22. Rfe1 {[%clk 0:01:40]}  Nxf3 {[%clk 0:01:47]} 23. Kxf3 {[%clk 0:01:40]}  Rfd8 {[%clk 0:01:48]} 24. Qe3 {[%clk 0:01:32]}  h6 {[%clk 0:01:37]} 25. Kg2 {[%clk 0:01:30]}  Ra4 {[%clk 0:01:37]} 26. c5 {[%clk 0:01:26]}  Qa5 {[%clk 0:01:36]} 27. Rad1 {[%clk 0:01:05]}  Rf8 {[%clk 0:01:24]} 28. Rd7 {[%clk 0:00:58]}  Rc4 {[%clk 0:01:16]} 29. Rb1 {[%clk 0:00:49]}  Rxc3 {[%clk 0:01:12]} 30. Qf4 {[%clk 0:00:47]}  Rxc5 {[%clk 0:01:06]} 31. Rbxb7 {[%clk 0:00:44]}  Qxa2 {[%clk 0:00:59]} 32. Ra7 {[%clk 0:00:28]}  Qe6 {[%clk 0:00:56]} 33. Rd6 {[%clk 0:00:26]}  Qc8 {[%clk 0:00:44]} 34. Rdd7 {[%clk 0:00:23]}  Qe8 {[%clk 0:00:30]} 35. Re7 {[%clk 0:00:21]}  Qd8 {[%clk 0:00:30]} 36. Rad7 {[%clk 0:00:19]}  Qb8 {[%clk 0:00:16]} 37. Rxf7 {[%clk 0:00:18]}  Rg5 {[%clk 0:00:10]} 38. Qc4 {[%clk 0:00:11]}  Rxf7 {[%clk 0:00:07]} 39. Qxf7+ {[%clk 0:00:10]}  Kh8 {[%clk 0:00:07]} 40. Re7 {[%clk 0:00:09]}  Qd6 {[%clk 0:00:04]} 41. Re8+ {[%clk 0:00:08]}  Kh7 {[%clk 0:00:04]} 42. Qg8+ {[%clk 0:00:08]}  Kg6 {[%clk 0:00:04]} 43. Re6+ {[%clk 0:00:09]}  Qxe6 {[%clk 0:00:05]} 44. Qxe6+ {[%clk 0:00:09]}  Kh7 {[%clk 0:00:05]} 45. Qxc6 {[%clk 0:00:10]}  Kh8 {[%clk 0:00:06]} 46. Qe8+ {[%clk 0:00:09]}  Kh7 {[%clk 0:00:06]} 47. h4 {[%clk 0:00:10]}  Ra5 {[%clk 0:00:04]} 48. h5 {[%clk 0:00:10]}  Ra6 {[%clk 0:00:03]} 49. Qe4+ {[%clk 0:00:09]}  Kh8 {[%clk 0:00:03]} 50. Qe8+ {[%clk 0:00:09]}  Kh7 {[%clk 0:00:03]} 51. g4 {[%clk 0:00:08]}  Ra5 {[%clk 0:00:03]} 52. f3 {[%clk 0:00:08]}  Ra2+ {[%clk 0:00:03]} 53. Kg3 {[%clk 0:00:09]}  Ra1 {[%clk 0:00:03]} 54. Qe4+ {[%clk 0:00:05]}  Kh8 {[%clk 0:00:04]} 55. Qg6 {[%clk 0:00:05]}  Ra8 {[%clk 0:00:03]} 56. f4 {[%clk 0:00:05]}  Ra3+ {[%clk 0:00:03]} 57. Kh4 {[%clk 0:00:06]}  Ra1 {[%clk 0:00:03]} 58. g5 {[%clk 0:00:06]}  hxg5+ {[%clk 0:00:04]} 59. fxg5 {[%clk 0:00:05]}  Rh1+ {[%clk 0:00:05]} 60. Kg4 {[%clk 0:00:06]}  Rg1+ {[%clk 0:00:05]} 61. Kf5 {[%clk 0:00:06]}  Rf1+ {[%clk 0:00:06]} 62. Ke6 {[%clk 0:00:06]}  Re1+ {[%clk 0:00:04]} 63. Kd5 {[%clk 0:00:07]}  Rd1+ {[%clk 0:00:05]} 64. Ke4 {[%clk 0:00:07]}  Re1+ {[%clk 0:00:05]} 65. Kd3 {[%clk 0:00:07]}  Rd1+ {[%clk 0:00:05]} 66. Ke2 {[%clk 0:00:08]}  Rd8 {[%clk 0:00:04]} 67. h6 {[%clk 0:00:08]}  Rg8 {[%clk 0:00:04]} 68. h7 {[%clk 0:00:05]}  Rf8 {[%clk 0:00:04]} 69. Qh5 {[%clk 0:00:05]}  Rd8 {[%clk 0:00:03]} 70. Qf7 {[%clk 0:00:04]}  Rc8 {[%clk 0:00:03]} 71. Kf3 {[%clk 0:00:02]}  Rd8 {[%clk 0:00:04]} 72. Ke4 {[%clk 0:00:02]}  Rc8 {[%clk 0:00:04]} 73. Ke5 {[%clk 0:00:03]}  Rb8 {[%clk 0:00:04]} 74. Ke6 {[%clk 0:00:04]}  Rb6+ {[%clk 0:00:05]} 75. Ke7 {[%clk 0:00:04]}  Rb7+ {[%clk 0:00:05]} 76. Kf8 {[%clk 0:00:04]}  Rb8+ {[%clk 0:00:02]} 77. Ke7 {[%clk 0:00:03]}  Rb7+ {[%clk 0:00:03]} 78. Ke6 {[%clk 0:00:03]}  Rxf7 {[%clk 0:00:03]} 79. Kxf7 {[%clk 0:00:04]}  Kxh7 {[%clk 0:00:04]} 80. Ke6 {[%clk 0:00:03]}  Kg6 {[%clk 0:00:04]} 81. Ke5 {[%clk 0:00:03]}  Kxg5 {[%clk 0:00:04]} 82. Ke4 {[%clk 0:00:04]}  Kh4 {[%clk 0:00:05]} 83. Kf3 {[%clk 0:00:04]}  g5 {[%clk 0:00:05]} 84. Kf2 {[%clk 0:00:05]}  Kh3 {[%clk 0:00:05]} 0-1


[Site "https://www.chess.com"]

[Event "Titled Tuesday Blitz October 25 Late 2022"]
[White "Melikyan, Gnel"]
[Black "Moaataz, Ayah"]
[WhiteFideId "54109990"]
[BlackFideId "10615873"]
[WhiteElo "2138"]
[BlackElo "1993"]
[Result "1-0"]
[Round "03"]
[TimeControl "180+1"]
[Date "2022.10.26"]
[WhiteClock "0:02:28"]
[BlackClock "0:01:05"]

1. h4 {[%clk 0:03:00]}  d5 {[%clk 0:02:59]} 2. d4 {[%clk 0:02:59]}  h5 {[%clk 0:02:59]} 3. c4 {[%clk 0:02:59]}  c6 {[%clk 0:02:59]} 4. Nc3 {[%clk 0:02:59]}  Nf6 {[%clk 0:02:59]} 5. e3 {[%clk 0:02:59]}  e6 {[%clk 0:03:00]} 6. Nf3 {[%clk 0:02:59]}  Bd6 {[%clk 0:03:00]} 7. Bd2 {[%clk 0:03:00]}  Nbd7 {[%clk 0:03:00]} 8. Qc2 {[%clk 0:03:01]}  Qe7 {[%clk 0:03:00]} 9. Bd3 {[%clk 0:03:00]}  a6 {[%clk 0:02:59]} 10. a3 {[%clk 0:02:59]}  O-O {[%clk 0:02:55]} 11. Ng5 {[%clk 0:02:56]}  e5 {[%clk 0:02:51]} 12. O-O-O {[%clk 0:02:52]}  dxc4 {[%clk 0:02:37]} 13. Bxc4 {[%clk 0:02:52]}  b5 {[%clk 0:02:34]} 14. Ba2 {[%clk 0:02:51]}  c5 {[%clk 0:02:33]} 15. Nd5 {[%clk 0:02:51]}  Qd8 {[%clk 0:02:26]} 16. Nxf6+ {[%clk 0:02:45]}  Nxf6 {[%clk 0:02:25]} 17. dxe5 {[%clk 0:02:42]}  Bxe5 {[%clk 0:02:25]} 18. f4 {[%clk 0:02:43]}  Bxb2+ {[%clk 0:01:30]} 19. Kxb2 {[%clk 0:02:37]}  b4 {[%clk 0:01:31]} 20. Bxb4 {[%clk 0:02:29]}  Qb6 {[%clk 0:01:14]} 21. Qxc5 {[%clk 0:02:29]}  Qxc5 {[%clk 0:01:04]} 22. Bxc5 {[%clk 0:02:28]}  Rb8+ {[%clk 0:01:05]} 23. Ka1 {[%clk 0:02:28]} 1-0


[Site "https://www.chess.com"]